fUSD/lending_fUSD_20260407
["ID","MTS","AMOUNT","RATE_DAILY","PERIOD"]
[419978660,1775581840930,-729.0,0.00013151,2]
[419978662,1775581840941,-500.0,0.00013151,2]
[419978664,1775581840950,-729.0,0.00013151,2]
[419978666,1775581840961,-500.0,0.00013151,2]
[419978668,1775581840970,-500.0,0.00013151,2]
[419978670,1775581840980,-500.0,0.00013151,2]
[419978672,1775581840989,-500.0,0.00013151,2]
[419978674,1775581840999,-500.0,0.00013151,2]
[419978676,1775581841009,-729.0,0.00013151,2]
[419978678,1775581841019,-500.0,0.00013151,2]
[419978680,1775581841030,-500.0,0.00013151,2]
[419978682,1775581841040,-500.0,0.00013151,2]
[419978684,1775581841049,-500.0,0.00013151,2]
[419978686,1775581841059,-408.98301836,0.00013151,2]
[419978688,1775581841069,-345.22023393,0.00013151,2]
[419978690,1775581841078,-729.0,0.00013151,2]
[419978692,1775581841087,-500.0,0.00013151,2]
[419978694,1775581841097,-729.0,0.00013151,2]
[419978696,1775581841107,-500.0,0.00013151,2]
[419978698,1775581841117,-500.0,0.00013151,2]
[419978700,1775581841127,-500.0,0.00013151,2]
[419978702,1775581841137,-500.0,0.00013151,2]
[419978704,1775581841147,-500.0,0.00013151,2]
[419978706,1775581841156,-500.0,0.00013151,2]
[419978708,1775581841166,-729.0,0.00013151,2]
[419978710,1775581841176,-500.0,0.00013151,2]
[419978712,1775581841187,-500.0,0.00013151,2]
[419978714,1775581841196,-500.0,0.00013151,2]
[419978716,1775581841206,-500.0,0.00013151,2]
[419978718,1775581841215,-500.0,0.00013151,2]
[419978720,1775581841225,-500.0,0.00013151,2]
[419978722,1775581841235,-500.0,0.00013151,2]
[419978724,1775581841244,-729.0,0.00013151,2]
[419978726,1775581841253,-500.0,0.00013151,2]
[419978728,1775581841263,-500.0,0.00013151,2]
[419978730,1775581841272,-729.0,0.00013151,2]
[419978732,1775581841282,-500.0,0.00013151,2]
[419978734,1775581841292,-174.4335177,0.00013151,2]
[419978736,1775581841301,-729.0,0.00013151,2]
[419978738,1775581841311,-662.0,0.00013151,2]
[419978740,1775581841321,-662.0,0.00013151,2]
[419978742,1775581841330,-662.0,0.00013151,2]
[419978744,1775581841339,-662.0,0.00013151,2]
[419978746,1775581841349,-662.0,0.00013151,2]
[419978748,1775581841358,-729.22106888,0.00013151,2]
[419978750,1775581841369,-662.0,0.00013151,2]
[419978752,1775581841379,-662.0,0.00013151,2]
[419978754,1775581841388,-662.0,0.00013151,2]
[419978756,1775581841398,-662.0,0.00013151,2]
[419978758,1775581841408,-150.56006719,0.00013151,2]
[419978760,1775581841417,-662.0,0.00013151,2]
[419978762,1775581841429,-662.0,0.00013151,2]
[419978764,1775581841438,-150.1380317,0.00013151,2]
[419978766,1775581841448,-662.0,0.00013151,2]
[419978768,1775581841458,-662.0,0.00013151,2]
[419978770,1775581841468,-662.0,0.00013151,2]
[419978772,1775581841477,-662.0,0.00013151,2]
[419978774,1775581841487,-662.0,0.00013151,2]
[419978776,1775581841496,-160.0,0.00013156,2]
[419978778,1775581841505,-1009.318402,0.00013156,2]
[419978780,1775581841514,-1858.636805,0.00013156,2]
[419978782,1775581841523,-160.0,0.00013156,2]
[419978784,1775581841532,-1556.977934,0.00013156,2]
[419978786,1775581841542,-2953.955869,0.00013156,2]
[419978788,1775581841551,-160.0,0.00013156,2]
[419978789,1775581841560,-589.185071,0.00013156,2]
[419978791,1775581841570,-1018.370142,0.00013156,2]
[419978794,1775581841580,-150.0,0.0001316,2]
[419978795,1775581841589,-10632.85304545,0.00013172,2]
[419978797,1775581841599,-150.0,0.00013183,2]
[419978800,1775581841608,-150.0,0.00013189,2]
[419978803,1775581841618,-150.0,0.00013213,2]
[419978805,1775581841627,-347.78391042,0.00013233,2]
[419978807,1775581841637,-150.0,0.00013263,2]
[419978809,1775581841647,-166.66,0.00013276,2]
[419978811,1775581841656,-150.0,0.000133,2]
[419978813,1775581841666,-150.0,0.000133,2]
[419978815,1775581841675,-150.0,0.000133,2]
[419978817,1775581841685,-150.0,0.000133,2]
[419978819,1775581841694,-150.0,0.000133,2]
[419978821,1775581841704,-150.0,0.000133,2]
[419978823,1775581841713,-150.0,0.000133,2]
[419978824,1775581841722,-150.0,0.000133,2]
[419978825,1775581841732,-150.0,0.00013337,2]
[419978826,1775581841742,-420.0,0.00013372,2]
[419978827,1775581841751,-420.0,0.00013372,2]
[419978828,1775581841760,-420.0,0.00013372,2]
[419978829,1775581841769,-150.0,0.00013388,2]
[419978830,1775581841778,-500.0,0.00013393,2]
[419978831,1775581841787,-1680.0,0.000134,2]
[419978832,1775581841796,-255.0,0.00013402,2]
[419978833,1775581841806,-150.0,0.00013411,2]
[419978834,1775581841815,-150.0,0.00013417,2]
[419978835,1775581841824,-500.0,0.00013424,2]
[419978836,1775581841833,-500.0,0.00013424,2]
[419978837,1775581841842,-500.0,0.00013424,2]
[419978838,1775581841851,-500.0,0.00013424,2]
[419978839,1775581841860,-500.0,0.00013424,2]
[419978840,1775581841870,-500.0,0.00013424,2]
[419978841,1775581841880,-500.0,0.00013424,2]
[419978842,1775581841889,-594.20670319,0.00013424,2]
[419978843,1775581841898,-150.0,0.00013424,2]
[419978844,1775581841907,-150.0,0.00013424,2]
[419978845,1775581841917,-150.0,0.00013424,2]
[419978846,1775581841927,-181.70252141,0.00013424,2]
[419978847,1775581841936,-150.0,0.00013424,2]
[419978848,1775581841945,-150.7184852,0.00013424,2]
[419978849,1775581841955,-500.0,0.00013424,2]
[419978850,1775581841966,-500.0,0.00013424,2]
[419978851,1775581841975,-500.0,0.00013424,2]
[419978852,1775581841985,-500.0,0.00013424,2]
[419978853,1775581841995,-500.0,0.00013424,2]
[419978854,1775581842005,-500.0,0.00013424,2]
[419978855,1775581842014,-500.0,0.00013424,2]
[419978856,1775581842024,-337.97015847,0.00013424,2]
[419978857,1775581842034,-500.0,0.00013424,2]
[419978859,1775581842045,-500.0,0.00013424,2]
[419978860,1775581842054,-500.0,0.00013424,2]
[419978862,1775581842063,-500.0,0.00013424,2]
[419978864,1775581842073,-500.0,0.00013424,2]
[419978866,1775581842082,-338.64365037,0.00013424,2]
[419978868,1775581842092,-500.0,0.00013424,2]
[419978870,1775581842101,-500.0,0.00013424,2]
[419978872,1775581842111,-500.0,0.00013424,2]
[419978874,1775581842122,-385.20384257,0.00013424,2]
[419978877,1775581842133,-500.0,0.00013424,2]
[419978879,1775581842143,-500.0,0.00013424,2]
[419978881,1775581842153,-397.72162059,0.00013424,2]
[419978883,1775581842163,-160.0,0.00013424,2]
[419978885,1775581842173,-657.418748,0.00013424,2]
[419978887,1775581842183,-1154.837497,0.00013424,2]
[419978889,1775581842192,-160.0,0.00013424,2]
[419978891,1775581842202,-882.276482,0.00013424,2]
[419978893,1775581842211,-1604.552965,0.00013424,2]
[419978895,1775581842221,-150.0,0.0001344,2]
[419978896,1775581842230,-1423.61343027,0.00013466,2]
[419978898,1775581842240,-150.0,0.00013475,2]
[419978900,1775581842249,-150.0,0.00013475,2]
[419978902,1775581842259,-150.0,0.00013475,2]
[419978904,1775581842269,-150.0,0.00013484,2]
[419978906,1775581842278,-150.0,0.00013533,2]
[419978908,1775581842288,-150.0,0.00013533,2]
[419978910,1775581842297,-150.0,0.00013533,2]
[419978912,1775581842307,-150.0,0.00013558,2]
[419978914,1775581842317,-10632.85304545,0.00013561,2]
[419978916,1775581842327,-150.0,0.00013563,2]
[419978918,1775581842336,-150.0,0.0001358,2]
[419978920,1775581842345,-3667.82476707,0.000136,2]
[419978922,1775581842355,-150.0,0.0001362,2]
[419978924,1775581842365,-150.0,0.00013632,2]
[419978926,1775581842376,-150.0,0.0001365,2]
[419978928,1775581842386,-150.0,0.0001365,2]
[419978930,1775581842395,-150.0,0.0001365,2]
[419978932,1775581842405,-150.0,0.0001365,2]
[419978934,1775581842414,-150.0,0.0001365,2]
[419978936,1775581842423,-500.0,0.00013667,2]
[419978938,1775581842433,-391.29868191,0.00013668,2]
[419978940,1775581842443,-1500.0,0.00013668,2]
[419978942,1775581842453,-1500.0,0.00013668,2]
[419978944,1775581842463,-1500.0,0.00013668,2]
[419978946,1775581842472,-1500.0,0.00013668,2]
[419978948,1775581842482,-1500.0,0.00013668,2]
[419978950,1775581842491,-1500.0,0.00013668,2]
[419978952,1775581842501,-500.0,0.00013698,2]
[419978954,1775581842511,-500.0,0.00013698,2]
[419978956,1775581842521,-390.77484076,0.00013698,2]
[419978958,1775581842531,-567.82,0.00013698,2]
[419978960,1775581842541,-567.82,0.00013698,2]
[419978962,1775581842550,-567.82,0.00013698,2]
[419978964,1775581842560,-567.82,0.00013698,2]
[419978966,1775581842570,-567.82,0.00013698,2]
[419978968,1775581842580,-567.82,0.00013698,2]
[419978970,1775581842590,-567.82,0.00013698,2]
[419978972,1775581842600,-567.82,0.00013698,2]
[419978974,1775581842610,-567.82,0.00013698,2]
[419978976,1775581842621,-567.82,0.00013698,2]
[419978978,1775581842633,-567.82,0.00013698,2]
[419978980,1775581842642,-567.82,0.00013698,2]
[419978982,1775581842653,-567.82,0.00013698,2]
[419978985,1775581842663,-567.82,0.00013698,2]
[419978987,1775581842673,-567.82,0.00013698,2]
[419978989,1775581842682,-500.0,0.00013698,2]
[419978991,1775581842692,-500.0,0.00013698,2]
[419978993,1775581842703,-500.0,0.00013698,2]
[419978994,1775581842713,-500.0,0.00013698,2]
[419978996,1775581842723,-500.0,0.00013698,2]
[419978999,1775581842733,-500.0,0.00013698,2]
[419979002,1775581842742,-500.0,0.00013698,2]
[419979005,1775581842752,-420.19790691,0.00013698,2]
[419979007,1775581842761,-506.3,0.00013698,2]
[419979009,1775581842771,-506.3,0.00013698,2]
[419979011,1775581842781,-506.3,0.00013698,2]
[419979013,1775581842790,-506.3,0.00013698,2]
[419979015,1775581842798,-506.3,0.00013698,2]
[419979017,1775581842808,-506.3,0.00013698,2]
[419979019,1775581842817,-506.3,0.00013698,2]
[419979021,1775581842827,-506.3,0.00013698,2]
[419979023,1775581842836,-506.3,0.00013698,2]
[419979025,1775581842847,-506.3,0.00013698,2]
[419979027,1775581842856,-506.3,0.00013698,2]
[419979029,1775581842865,-506.3,0.00013698,2]
[419979031,1775581842875,-500.0,0.00013698,2]
[419979034,1775581842884,-500.0,0.00013698,2]
[419979037,1775581842894,-500.0,0.00013698,2]
[419979039,1775581842903,-500.0,0.00013698,2]
[419979041,1775581842912,-500.0,0.00013698,2]
[419979043,1775581842922,-500.0,0.00013698,2]
[419979045,1775581842932,-500.0,0.00013698,2]
[419979047,1775581842941,-500.0,0.00013698,2]
[419979049,1775581842951,-500.0,0.00013698,2]
[419979051,1775581842960,-500.0,0.00013698,2]
[419979053,1775581842968,-500.0,0.00013698,2]
[419979055,1775581842978,-500.0,0.00013698,2]
[419979057,1775581842987,-500.0,0.00013698,2]
[419979059,1775581842997,-500.0,0.00013698,2]
[419979061,1775581843006,-500.0,0.00013698,2]
[419979063,1775581843016,-500.0,0.00013698,2]
[419979064,1775581843026,-500.0,0.00013698,2]
[419979066,1775581843036,-500.0,0.00013698,2]
[419979068,1775581843046,-500.0,0.00013698,2]
[419979070,1775581843057,-500.0,0.00013698,2]
[419979072,1775581843067,-500.0,0.00013698,2]
[419979074,1775581843077,-500.0,0.00013698,2]
[419979076,1775581843087,-180.63471025,0.00013698,2]
[419979078,1775581843098,-893.87,0.00013698,2]
[419979080,1775581843108,-893.87,0.00013698,2]
[419979082,1775581843117,-893.87,0.00013698,2]
[419979084,1775581843127,-893.87,0.00013698,2]
[419979086,1775581843138,-893.87,0.00013698,2]
[419979088,1775581843148,-893.87,0.00013698,2]
[419979090,1775581843158,-893.87,0.00013698,2]
[419979092,1775581843168,-893.87,0.00013698,2]
[419979094,1775581843178,-893.87,0.00013698,2]
[419979096,1775581843188,-893.87,0.00013698,2]
[419979098,1775581843197,-893.87,0.00013698,2]
[419979100,1775581843207,-893.87,0.00013698,2]
[419979102,1775581843217,-500.0,0.00013698,2]
[419979104,1775581843228,-300.73076034,0.00013698,2]
[419979106,1775581843237,-785.93,0.00013698,2]
[419979108,1775581843247,-785.93,0.00013698,2]
[419979110,1775581843257,-785.93,0.00013698,2]
[419979112,1775581843268,-785.93,0.00013698,2]
[419979114,1775581843277,-785.93,0.00013698,2]
[419979116,1775581843287,-785.93,0.00013698,2]
[419979118,1775581843296,-785.93,0.00013698,2]
[419979120,1775581843307,-785.93,0.00013698,2]
[419979122,1775581843317,-785.93,0.00013698,2]
[419979124,1775581843327,-785.93,0.00013698,2]
[419979126,1775581843336,-785.93,0.00013698,2]
[419979128,1775581843348,-785.93,0.00013698,2]
[419979130,1775581843359,-500.0,0.00013698,2]
[419979132,1775581843369,-500.0,0.00013698,2]
[419979134,1775581843379,-500.0,0.00013698,2]
[419979136,1775581843390,-500.0,0.00013698,2]
[419979138,1775581843400,-500.0,0.00013698,2]
[419979140,1775581843410,-500.0,0.00013698,2]
[419979142,1775581843421,-500.0,0.00013698,2]
[419979144,1775581843431,-500.0,0.00013698,2]
[419979146,1775581843441,-500.0,0.00013698,2]
[419979148,1775581843451,-787.31,0.00013698,2]
[419979150,1775581843461,-787.31,0.00013698,2]
[419979152,1775581843471,-787.31,0.00013698,2]
[419979154,1775581843481,-787.31,0.00013698,2]
[419979156,1775581843490,-787.31,0.00013698,2]
[419979158,1775581843501,-787.31,0.00013698,2]
[419979160,1775581843511,-787.31,0.00013698,2]
[419979162,1775581843521,-787.31,0.00013698,2]
[419979164,1775581843531,-787.31,0.00013698,2]
[419979166,1775581843540,-922.22,0.00013698,2]
[419979168,1775581843549,-922.22,0.00013698,2]
[419979170,1775581843558,-922.22,0.00013698,2]
[419979172,1775581843568,-922.22,0.00013698,2]
[419979174,1775581843577,-922.22,0.00013698,2]
[419979176,1775581843586,-922.22,0.00013698,2]
[419979178,1775581843596,-922.22,0.00013698,2]
[419979180,1775581843606,-922.22,0.00013698,2]
[419979182,1775581843618,-922.22,0.00013698,2]
[419979184,1775581843628,-556.66,0.00013698,2]
[419979186,1775581843638,-556.66,0.00013698,2]
[419979188,1775581843648,-556.66,0.00013698,2]
[419979190,1775581843659,-556.66,0.00013698,2]
[419979192,1775581843669,-556.66,0.00013698,2]
[419979194,1775581843679,-556.66,0.00013698,2]
[419979196,1775581843690,-556.66,0.00013698,2]
[419979198,1775581843701,-556.66,0.00013698,2]
[419979200,1775581843711,-556.66,0.00013698,2]
[419979202,1775581843722,-556.66,0.00013698,2]
[419979204,1775581843733,-556.66,0.00013698,2]
[419979206,1775581843742,-556.66,0.00013698,2]
[419979208,1775581843752,-500.0,0.00013698,2]
[419979210,1775581843762,-500.0,0.00013698,2]
[419979212,1775581843773,-500.0,0.00013698,2]
[419979213,1775581843783,-500.0,0.00013698,2]
[419979215,1775581843793,-500.0,0.00013698,2]
[419979254,1775581844137,-500.0,0.00013698,2]
[419979256,1775581844147,-500.0,0.00013698,2]
[419979258,1775581844157,-500.0,0.00013698,2]
[419979260,1775581844167,-500.0,0.00013698,2]
[419979262,1775581844177,-500.0,0.00013698,2]
[419979264,1775581844187,-500.0,0.00013698,2]
[419979266,1775581844197,-500.0,0.00013698,2]
[419979268,1775581844207,-500.0,0.00013698,2]
[419979270,1775581844217,-500.0,0.00013698,2]
[419979272,1775581844227,-500.0,0.00013698,2]
[419979274,1775581844237,-500.0,0.00013698,2]
[419979276,1775581844247,-500.0,0.00013698,2]
[419979278,1775581844256,-481.06713155,0.00013698,2]
[419979280,1775581844266,-500.0,0.00013698,2]
[419979282,1775581844275,-500.0,0.00013698,2]
[419979284,1775581844285,-592.36573731,0.00013698,2]
[419979286,1775581844294,-683.92,0.00013698,2]
[419979288,1775581844303,-683.92,0.00013698,2]
[419979290,1775581844313,-683.92,0.00013698,2]
[419979292,1775581844323,-683.92,0.00013698,2]
[419979294,1775581844333,-683.92,0.00013698,2]
[419979296,1775581844343,-683.92,0.00013698,2]
[419979298,1775581844353,-683.92,0.00013698,2]
[419979301,1775581844363,-683.92,0.00013698,2]
[419979303,1775581844373,-683.92,0.00013698,2]
[419979305,1775581844383,-683.92,0.00013698,2]
[419979307,1775581844392,-683.92,0.00013698,2]
[419979309,1775581844401,-683.92,0.00013698,2]
[419979311,1775581844411,-500.0,0.00013698,2]
[419979312,1775581844420,-500.0,0.00013698,2]
[419979314,1775581844430,-500.0,0.00013698,2]
[419979317,1775581844440,-500.0,0.00013698,2]
[419979319,1775581844450,-500.0,0.00013698,2]
[419979320,1775581844459,-500.0,0.00013698,2]
[419979322,1775581844468,-500.0,0.00013698,2]
[419979324,1775581844478,-391.39016199,0.00013698,2]
[419979326,1775581844488,-180.0,0.00013699,2]
[419979328,1775581844497,-150.0,0.00013699,2]
[419979330,1775581844507,-150.0,0.00013699,2]
[419979331,1775581844516,-150.0,0.00013699,2]
[419979332,1775581844526,-150.0,0.00013699,2]
[419979333,1775581844536,-200.0,0.00013699,2]
[419979334,1775581844546,-166.66,0.00013699,2]
[419979335,1775581844555,-500.0,0.00013699,2]
[419979337,1775581844565,-500.0,0.00013699,2]
[419979339,1775581844574,-500.0,0.00013699,2]
[419979341,1775581844583,-500.0,0.00013699,2]
[419979343,1775581844592,-500.0,0.00013699,2]
[419979345,1775581844602,-500.0,0.00013699,2]
[419979347,1775581844612,-500.0,0.00013699,2]
[419979349,1775581844621,-500.0,0.00013699,2]
[419979351,1775581844631,-500.0,0.00013699,2]
[419979353,1775581844641,-501.19620744,0.00013699,2]
[419979355,1775581844651,-500.0,0.00013699,2]
[419979357,1775581844661,-501.02973938,0.00013699,2]
[419979359,1775581844670,-500.0,0.00013699,2]
[419979360,1775581844680,-500.0,0.00013699,2]
[419979362,1775581844690,-500.0,0.00013699,2]
[419979364,1775581844700,-500.0,0.00013699,2]
[419979366,1775581844710,-500.0,0.00013699,2]
[419979368,1775581844719,-500.0,0.00013699,2]
[419979370,1775581844729,-500.0,0.00013699,2]
[419979372,1775581844738,-500.27198937,0.00013699,2]
[419979374,1775581844747,-500.0,0.00013699,2]
[419979376,1775581844756,-500.0,0.00013699,2]
[419979378,1775581844766,-500.0,0.00013699,2]
[419979380,1775581844776,-500.0,0.00013699,2]
[419979382,1775581844786,-500.0,0.00013699,2]
[419979384,1775581844795,-337.90453598,0.00013699,2]
[419979386,1775581844805,-500.0,0.00013699,2]
[419979389,1775581844816,-180.21187415,0.00013699,2]
[419979391,1775581844825,-500.0,0.00013699,2]
[419979393,1775581844835,-500.0,0.00013699,2]
[419979395,1775581844846,-500.0,0.00013699,2]
[419979397,1775581844855,-189.95993746,0.00013699,2]
[419979399,1775581844865,-500.0,0.00013699,2]
[419979401,1775581844875,-561.33456625,0.00013699,2]
[419979403,1775581844885,-500.0,0.00013699,2]
[419979405,1775581844894,-164.39680661,0.00013699,2]
[419979407,1775581844904,-163.84182296,0.00013699,2]
[419979409,1775581844915,-500.0,0.00013699,2]
[419979411,1775581844924,-288.2071777,0.00013699,2]
[419979413,1775581844934,-500.0,0.00013699,2]
[419979415,1775581844943,-500.0,0.00013699,2]
[419979417,1775581844953,-352.48557695,0.00013699,2]
[419979419,1775581844963,-244.01107124,0.00013699,2]
[419979421,1775581844973,-503.7652055,0.00013699,2]
[419979423,1775581844983,-500.0,0.00013699,2]
[419979425,1775581844992,-500.0,0.00013699,2]
[419979427,1775581845002,-500.0,0.00013699,2]
[419979429,1775581845012,-474.57359568,0.00013699,2]
[419979431,1775581845022,-290.6020449,0.00013699,2]
[419979433,1775581845033,-500.0,0.00013699,2]
[419979435,1775581845042,-500.0,0.00013699,2]
[419979437,1775581845052,-179.29721324,0.00013699,2]
[419979440,1775581845062,-567.82,0.00013699,2]
[419979442,1775581845072,-506.3,0.00013699,2]
[419979444,1775581845082,-152.09808365,0.00013699,2]
[419979446,1775581845091,-500.0,0.00013699,2]
[419979448,1775581845101,-893.87,0.00013699,2]
[419979450,1775581845111,-785.93,0.00013699,2]
[419979452,1775581845121,-556.66,0.00013699,2]
[419979454,1775581845130,-500.0,0.00013699,2]
[419979455,1775581845139,-500.0,0.00013699,2]
[419979457,1775581845148,-500.0,0.00013699,2]
[419979459,1775581845158,-500.0,0.00013699,2]
[419979461,1775581845167,-500.0,0.00013699,2]
[419979463,1775581845178,-500.0,0.00013699,2]
[419979465,1775581845188,-305.85122809,0.00013699,2]
[419979467,1775581845198,-683.92,0.00013699,2]
[419979469,1775581845207,-342956.12,0.000137,2]
[419979471,1775581845217,-167.706,0.000137,2]
[419979473,1775581845226,-150.0,0.00013705,2]
[419979475,1775581845236,-150.0,0.0001372,2]
[419979477,1775581845245,-150.0,0.00013738,2]
[419979480,1775581845255,-155.26329613,0.00013763,2]
[419979482,1775581845265,-150.0,0.00013767,2]
[419979484,1775581845276,-150.0,0.00013767,2]
[419979486,1775581845286,-150.0,0.00013767,2]
[419979488,1775581845296,-150.0,0.00013779,2]
[419979490,1775581845305,-166.66,0.00013782,2]
[419979492,1775581845315,-1376.343276,0.00013813,7]
[419979494,1775581845326,-2123.151729,0.00013813,2]
[419979496,1775581845335,-1205.151281,0.00013813,7]
[419979498,1775581845345,-387.33,0.00013822,2]
[419979500,1775581845354,-150.0,0.00013825,2]
[419979502,1775581845364,-150.0,0.00013825,2]
[419979504,1775581845374,-150.0,0.00013825,2]
[419979506,1775581845385,-166.66,0.00013836,2]
[419979508,1775581845396,-150.0,0.00013853,2]
[419979510,1775581845405,-150.0,0.0001386,2]
[419979512,1775581845415,-500.0,0.00013868,2]
[419979514,1775581845425,-351.0,0.00013879,2]
[419979516,1775581845434,-150.0,0.00013883,2]
[419979518,1775581845444,-152.0,0.00013892,4]
[419979520,1775581845454,-150.0,0.00013913,2]
[419979522,1775581845463,-150.0,0.00013926,2]
[419979525,1775581845473,-500.0,0.00013941,2]
[419979527,1775581845483,-1423.61343027,0.00013953,2]
[419979529,1775581845492,-893.87,0.00013959,2]
[419979531,1775581845502,-785.93,0.00013959,2]
[419979533,1775581845513,-347.78391042,0.00013967,2]
[419979535,1775581845522,-150.0,0.00013973,2]
[419979537,1775581845531,-150.0,0.00013973,2]
[419979539,1775581845542,-166.66,0.00013973,2]
[419979541,1775581845552,-224.88397604,0.00014,2]
[419979543,1775581845562,-245.0843554,0.00014,2]
[419979545,1775581845572,-183.96136344,0.00014,2]
[419979547,1775581845582,-152.61372689,0.00014,2]
[419979549,1775581845592,-272.54305016,0.00014,2]
[419979551,1775581845601,-151.22967101,0.00014,2]
[419979553,1775581845611,-150.00000001,0.00014,2]
[419979555,1775581845621,-234.65590515,0.00014,2]
[419979558,1775581845631,-267.10584669,0.00014,2]
[419979560,1775581845641,-151.75828688,0.00014,2]
[419979562,1775581845651,-5246.47772752,0.00014007,2]
[419979564,1775581845661,-171.33,0.0001401,2]
[419979566,1775581845670,-567.82,0.00014079,2]
[419979568,1775581845680,-1500.0,0.00014082,2]
[419979570,1775581845690,-700.0,0.00014082,2]
[419979572,1775581845702,-1344.720167,0.00014095,2]
[419979574,1775581845712,-1203.104294,0.00014095,7]
[419979576,1775581845722,-166.66,0.0001411,2]
[419979578,1775581845732,-985.75,0.0001412,2]
[419979580,1775581845743,-501.0,0.00014145,2]
[419979582,1775581845753,-500.0,0.00014215,2]
[419979584,1775581845764,-2000.0,0.00014216,2]
[419979586,1775581845774,-2000.0,0.00014216,2]
[419979588,1775581845784,-1008.06532933,0.00014216,2]
[419979590,1775581845795,-2000.0,0.00014216,2]
[419979592,1775581845805,-2000.0,0.00014216,2]
[419979594,1775581845815,-2000.0,0.00014216,2]
[419979596,1775581845825,-500.0,0.00014246,2]
[419979599,1775581845835,-787.31,0.00014246,2]
[419979602,1775581845844,-922.22,0.00014246,2]
[419979605,1775581845854,-500.0,0.00014246,2]
[419979609,1775581845865,-166.66,0.00014247,2]
[419979612,1775581845875,-150.0,0.00014247,2]
[419979614,1775581845885,-150.0,0.00014247,2]
[419979616,1775581845895,-1000.0,0.00014247,2]
[419979618,1775581845904,-500.0,0.00014247,2]
[419979620,1775581845914,-1000.0,0.00014247,2]
[419979622,1775581845924,-501.15528653,0.00014247,2]
[419979624,1775581845934,-916.10355522,0.00014247,2]
[419979625,1775581845943,-500.0,0.00014247,2]
[419979627,1775581845952,-500.0,0.00014247,2]
[419979629,1775581845961,-500.0,0.00014247,2]
[419979631,1775581845970,-361.43877969,0.00014247,2]
[419979633,1775581845979,-500.62488196,0.00014247,2]
[419979635,1775581845988,-1000.0,0.00014247,2]
[419979637,1775581845997,-308.46665477,0.00014247,2]
[419979639,1775581846009,-500.55949721,0.00014247,2]
[419979641,1775581846018,-1000.0,0.00014247,2]
[419979643,1775581846029,-1000.0,0.00014247,2]
[419979645,1775581846039,-1001.08425636,0.00014247,2]
[419979648,1775581846049,-1057.10851207,0.00014247,2]
[419979650,1775581846060,-1000.0,0.00014247,2]
[419979652,1775581846070,-1000.0,0.00014247,2]
[419979654,1775581846080,-1000.0,0.00014247,2]
[419979656,1775581846090,-204.20995808,0.00014247,2]
[419979658,1775581846100,-1000.0,0.00014247,2]
[419979660,1775581846112,-1000.88623589,0.00014247,2]
[419979662,1775581846125,-1000.0,0.00014247,2]
[419979664,1775581846135,-730.39443641,0.00014247,2]
[419979666,1775581846146,-500.0,0.00014247,2]
[419979669,1775581846156,-500.0,0.00014247,2]